[Event "FIDE Women World Blitz 2021"]
[Site "Warsaw"]
[Date "2021.12.29"]
[Round "2.6"]
[White "Pavlidou, Ekaterini"]
[Black "Michna, Marta"]
[Result "1-0"]
[ECO "A53"]
[WhiteElo "2177"]
[BlackElo "2312"]
[Annotator "NA"]
[PlyCount "77"]
[EventDate "2021.12.29"]
[EventType "swiss"]
[EventCountry "POL"]
[Tiebreak "Cut1 Buchholz"]
[SourceTitle "playchess.com"]
[Source "ChessBase"]
[SourceQuality "1"]
[TimeControl "180+2"]

1. d4 {[%emt 0:00:03]} Nf6 {[%emt 0:00:01]} 2. c4 {[%emt 0:00:01]} d6 {[%emt 0:
00:01]} 3. Nc3 {[%emt 0:00:11]} Nbd7 {[%emt 0:00:01]} 4. e4 {[%emt 0:00:03]} e5
{[%emt 0:00:01]} 5. d5 {[%emt 0:00:04]} Be7 {[%emt 0:00:03]} 6. g3 {[%emt 0:00:
07]} c6 {[%emt 0:00:32]} 7. Bg2 {[%emt 0:00:07]} O-O {[%emt 0:00:03]} 8. Nge2 {
[%emt 0:00:09]} a6 {[%emt 0:00:37]} 9. O-O {[%emt 0:00:12]} cxd5 {[%emt 0:00:
01]} 10. cxd5 {[%emt 0:00:09]} b5 {[%emt 0:00:02]} 11. a3 {[%emt 0:00:02]} Nb6
{[%emt 0:00:06]} 12. b3 {[%emt 0:00:06]} Bd7 {[%emt 0:00:24]} 13. h3 {[%emt 0:
00:20]} a5 {[%emt 0:00:03]} 14. Be3 {[%emt 0:00:24]} Qb8 {[%emt 0:00:12]} 15.
f4 {[%emt 0:00:16]} b4 {[%emt 0:00:13]} 16. axb4 {[%emt 0:00:01]} axb4 {
[%emt 0:00:00]} 17. Rxa8 {[%emt 0:00:03]} Nxa8 {[%emt 0:00:01]} 18. Na4 {
[%emt 0:00:06]} exf4 {[%emt 0:00:22]} 19. gxf4 {[%emt 0:00:03]} Bb5 {[%emt 0:
00:08]} 20. Bd4 {[%emt 0:00:11]} Bd8 {[%emt 0:00:05]} 21. e5 {[%emt 0:00:19]}
Nh5 {[%emt 0:00:02]} 22. Kh2 {[%emt 0:00:13]} Bh4 {[%emt 0:00:17]} 23. Rf3 {
[%emt 0:00:06]} Nc7 {[%emt 0:00:05]} 24. exd6 {[%emt 0:00:08]} Nxd5 {[%emt 0:
00:04]} 25. Bxg7 {[%emt 0:00:03]} Nxg7 {[%emt 0:00:11]} 26. Qxd5 {[%emt 0:00:
07]} Bxe2 {[%emt 0:00:01]} 27. Re3 {[%emt 0:00:05]} Bb5 {[%emt 0:00:04]} 28.
Nc5 {[%emt 0:00:02]} Rd8 {[%emt 0:00:05]} 29. Ne4 {[%emt 0:00:11]} Qa8 {
[%emt 0:00:06]} 30. Qxb5 {[%emt 0:00:02]} Qa2 {[%emt 0:00:03]} 31. Re2 {
[%emt 0:00:02]} Qa1 {[%emt 0:00:02]} 32. d7 {[%emt 0:00:03]} Ne6 {[%emt 0:00:
02]} 33. Ng5 {[%emt 0:00:02]} Qf6 {[%emt 0:00:04]} 34. Nxe6 {[%emt 0:00:02]}
fxe6 {[%emt 0:00:00]} 35. Qe5 {[%emt 0:00:02]} Qg6 {[%emt 0:00:02]} 36. f5 {
[%emt 0:00:03]} exf5 {[%emt 0:00:03]} 37. Bd5+ {[%emt 0:00:00]} Kf8 {[%emt 0:
00:01]} 38. Qh8+ {[%emt 0:00:02]} Qg8 {[%emt 0:00:02]} 39. Qxg8# {[%emt 0:00:
04]} 1-0

[Event "FIDE Women World Blitz 2021"]
[Site "Warsaw"]
[Date "2021.12.29"]
[Round "2.7"]
[White "Balajayeva, Khanim"]
[Black "Bodnaruk, Anastasia"]
[Result "1-0"]
[ECO "B22"]
[WhiteElo "2369"]
[BlackElo "2396"]
[Annotator "NA"]
[PlyCount "73"]
[EventDate "2021.12.29"]
[EventType "swiss"]
[EventCountry "POL"]
[Tiebreak "Cut1 Buchholz"]
[SourceTitle "playchess.com"]
[Source "ChessBase"]
[SourceQuality "1"]
[TimeControl "180+2"]

1. e4 {[%emt 0:00:00]} c5 {[%emt 0:00:00]} 2. c3 {[%emt 0:00:01]} Nf6 {[%emt 0:
00:01]} 3. e5 {[%emt 0:00:01]} Nd5 {[%emt 0:00:01]} 4. Nf3 {[%emt 0:00:01]} Nc6
{[%emt 0:00:03]} 5. Bc4 {[%emt 0:00:06]} Nb6 {[%emt 0:00:03]} 6. Bb3 {[%emt 0:
00:01]} c4 {[%emt 0:00:01]} 7. Bc2 {[%emt 0:00:01]} Qc7 {[%emt 0:00:01]} 8. O-O
{[%emt 0:00:02]} Nxe5 {[%emt 0:00:03]} 9. Nxe5 {[%emt 0:00:02]} Qxe5 {[%emt 0:
00:01]} 10. Re1 {[%emt 0:00:01]} Qc7 {[%emt 0:00:05]} 11. Na3 {[%emt 0:00:01]}
a6 {[%emt 0:00:12]} 12. b3 {[%emt 0:00:29]} e6 {[%emt 0:00:03]} 13. Nxc4 {
[%emt 0:00:15]} Nxc4 {[%emt 0:00:02]} 14. bxc4 {[%emt 0:00:01]} Qxc4 {[%emt 0:
00:01]} 15. Bb3 {[%emt 0:00:13]} Qc7 {[%emt 0:00:05]} 16. Qg4 {[%emt 0:00:10]}
h5 {[%emt 0:00:19]} 17. Qf3 {[%emt 0:00:05]} Be7 {[%emt 0:00:34]} 18. d4 {
[%emt 0:00:03]} d6 {[%emt 0:00:05]} 19. Bd2 {[%emt 0:00:16]} Bd7 {[%emt 0:00:
05]} 20. Rab1 {[%emt 0:00:03]} h4 {[%emt 0:00:08]} 21. h3 {[%emt 0:00:12]} O-O
{[%emt 0:00:08]} 22. Bc2 {[%emt 0:00:00]} b5 {[%emt 0:00:15]} 23. Re2 {[%emt 0:
00:25]} g6 {[%emt 0:00:29]} 24. Rbe1 {[%emt 0:00:04]} d5 {[%emt 0:00:08]} 25.
Re5 {[%emt 0:00:21]} f5 {[%emt 0:00:10]} 26. Rxd5 {[%emt 0:00:13]} exd5 {
[%emt 0:00:24]} 27. Qxd5+ {[%emt 0:00:00]} Kh8 {[%emt 0:00:06]} 28. Rxe7 {
[%emt 0:00:02]} Rad8 {[%emt 0:00:04]} 29. Bh6 {[%emt 0:00:14]} Rfe8 {[%emt 0:
00:12]} 30. Bg7+ {[%emt 0:00:12]} Kh7 {[%emt 0:00:01]} 31. Be5+ {[%emt 0:00:01]
} Rxe7 {[%emt 0:00:01]} 32. Bxc7 {[%emt 0:00:01]} Rc8 {[%emt 0:00:03]} 33. Be5
{[%emt 0:00:04]} Rxc3 {[%emt 0:00:02]} 34. Bb3 {[%emt 0:00:01]} Rc8 {[%emt 0:
00:05]} 35. Bf6 {[%emt 0:00:08]} Be6 {[%emt 0:00:02]} 36. Qd6 {[%emt 0:00:03]}
Rf7 {[%emt 0:00:08]} 37. Qxe6 {[%emt 0:00:02]} 1-0

[Event "FIDE Women World Blitz 2021"]
[Site "Warsaw"]
[Date "2021.12.29"]
[Round "2.7"]
[White "Smietanska, Wiktoria"]
[Black "Strutinskaia, Galina"]
[Result "1-0"]
[ECO "A21"]
[WhiteElo "1765"]
[BlackElo "2188"]
[Annotator "NA"]
[PlyCount "93"]
[EventDate "2021.12.29"]
[EventType "swiss"]
[EventCountry "POL"]
[Tiebreak "Cut1 Buchholz"]
[SourceTitle "playchess.com"]
[Source "ChessBase"]
[SourceQuality "1"]
[TimeControl "180+2"]

1. c4 {[%emt 0:00:01]} e5 {[%emt 0:00:00]} 2. Nc3 {[%emt 0:00:01]} Bb4 {
[%emt 0:00:01]} 3. Nd5 {[%emt 0:00:01]} Bc5 {[%emt 0:00:02]} 4. b4 {[%emt 0:00:
16]} Bf8 {[%emt 0:00:02]} 5. a3 {[%emt 0:00:04]} a5 {[%emt 0:00:04]} 6. b5 {
[%emt 0:00:05]} c6 {[%emt 0:00:02]} 7. Nc3 {[%emt 0:00:02]} d5 {[%emt 0:00:01]}
8. cxd5 {[%emt 0:00:04]} cxd5 {[%emt 0:00:02]} 9. d4 {[%emt 0:00:02]} e4 {
[%emt 0:00:05]} 10. Qb3 {[%emt 0:00:12]} Be6 {[%emt 0:00:05]} 11. Bf4 {[%emt 0:
00:07]} Nd7 {[%emt 0:00:01]} 12. e3 {[%emt 0:00:18]} Nb6 {[%emt 0:00:02]} 13.
Be2 {[%emt 0:00:09]} Nf6 {[%emt 0:00:11]} 14. f3 {[%emt 0:00:08]} Rc8 {[%emt 0:
00:15]} 15. fxe4 {[%emt 0:00:30]} dxe4 {[%emt 0:00:01]} 16. Qb2 {[%emt 0:00:04]
} Bd6 {[%emt 0:00:17]} 17. Bxd6 {[%emt 0:00:12]} Qxd6 {[%emt 0:00:01]} 18. a4 {
[%emt 0:00:14]} O-O {[%emt 0:00:02]} 19. Qa3 {[%emt 0:00:17]} Qc7 {[%emt 0:00:
24]} 20. Rc1 {[%emt 0:00:18]} Nbd5 {[%emt 0:00:07]} 21. Kd2 {[%emt 0:00:10]}
Qd7 {[%emt 0:00:17]} 22. Bd1 {[%emt 0:00:13]} Nb4 {[%emt 0:00:05]} 23. Nge2 {
[%emt 0:00:07]} Nd3 {[%emt 0:00:02]} 24. Rc2 {[%emt 0:00:01]} Nb4 {[%emt 0:00:
13]} 25. Rc1 {[%emt 0:00:02]} Rc7 {[%emt 0:00:02]} 26. Nf4 {[%emt 0:00:02]}
Rfc8 {[%emt 0:00:04]} 27. Bb3 {[%emt 0:00:04]} Bxb3 {[%emt 0:00:18]} 28. Qxb3 {
[%emt 0:00:01]} h6 {[%emt 0:00:05]} 29. Na2 {[%emt 0:00:09]} Nxa2 {[%emt 0:00:
07]} 30. Qxa2 {[%emt 0:00:01]} g5 {[%emt 0:00:07]} 31. Ne2 {[%emt 0:00:02]} Nd5
{[%emt 0:00:04]} 32. Qb3 {[%emt 0:00:04]} Nb4 {[%emt 0:00:05]} 33. Rxc7 {
[%emt 0:00:03]} Rxc7 {[%emt 0:00:01]} 34. Nc3 {[%emt 0:00:01]} Qg4 {[%emt 0:00:
04]} 35. Rg1 {[%emt 0:00:02]} Qf5 {[%emt 0:00:04]} 36. Ke2 {[%emt 0:00:02]} h5
{[%emt 0:00:09]} 37. Rf1 {[%emt 0:00:01]} Qg4+ {[%emt 0:00:01]} 38. Kf2 {
[%emt 0:00:01]} h4 {[%emt 0:00:07]} 39. Kg1 {[%emt 0:00:02]} h3 {[%emt 0:00:02]
} 40. g3 {[%emt 0:00:00]} b6 {[%emt 0:00:06]} 41. Nd5 {[%emt 0:00:03]} Nxd5 {
[%emt 0:00:07]} 42. Qxd5 {[%emt 0:00:01]} Rc2 {[%emt 0:00:11]} 43. Qxf7+ {
[%emt 0:00:03]} Kh8 {[%emt 0:00:05]} 44. Qf8+ {[%emt 0:00:02]} Kh7 {[%emt 0:00:
01]} 45. Rf7+ {[%emt 0:00:02]} Kg6 {[%emt 0:00:01]} 46. Qg7+ {[%emt 0:00:01]}
Kh5 {[%emt 0:00:00]} 47. Qh7# {[%emt 0:00:01]} 1-0

[Event "FIDE Women World Blitz 2021"]
[Site "Warsaw"]
[Date "2021.12.29"]
[Round "2.8"]
[White "Salimova, Nurgyul"]
[Black "Zatonskih, Anna"]
[Result "0-1"]
[ECO "D00"]
[WhiteElo "2353"]
[BlackElo "2394"]
[Annotator "NA"]
[PlyCount "58"]
[EventDate "2021.12.29"]
[EventType "swiss"]
[EventCountry "POL"]
[Tiebreak "Cut1 Buchholz"]
[SourceTitle "playchess.com"]
[Source "ChessBase"]
[SourceQuality "1"]
[TimeControl "180+2"]

1. d4 {[%emt 0:00:01]} d5 {[%emt 0:00:00]} 2. Nc3 {[%emt 0:00:01]} Nf6 {
[%emt 0:00:03]} 3. Bf4 {[%emt 0:00:02]} a6 {[%emt 0:00:03]} 4. e3 {[%emt 0:00:
04]} e6 {[%emt 0:00:16]} 5. Bd3 {[%emt 0:00:09]} c5 {[%emt 0:00:03]} 6. dxc5 {
[%emt 0:00:20]} Bxc5 {[%emt 0:00:01]} 7. Nf3 {[%emt 0:00:02]} Nc6 {[%emt 0:00:
12]} 8. O-O {[%emt 0:00:15]} O-O {[%emt 0:00:04]} 9. e4 {[%emt 0:00:03]} d4 {
[%emt 0:00:19]} 10. Ne2 {[%emt 0:00:04]} Qe7 {[%emt 0:01:07]} 11. e5 {[%emt 0:
00:10]} Nd5 {[%emt 0:00:06]} 12. Bg3 {[%emt 0:00:06]} f6 {[%emt 0:00:10]} 13.
exf6 {[%emt 0:00:11]} Nxf6 {[%emt 0:00:01]} 14. c3 {[%emt 0:00:45]} e5 {
[%emt 0:00:03]} 15. cxd4 {[%emt 0:00:05]} exd4 {[%emt 0:00:03]} 16. Re1 {
[%emt 0:00:26]} Qd8 {[%emt 0:00:11]} 17. Ne5 {[%emt 0:00:15]} Bg4 {[%emt 0:00:
27]} 18. Nxg4 {[%emt 0:00:14]} Nxg4 {[%emt 0:00:02]} 19. Qb3+ {[%emt 0:00:15]}
Kh8 {[%emt 0:00:01]} 20. Qxb7 {[%emt 0:00:05]} Nb4 {[%emt 0:00:07]} 21. Rad1 {
[%emt 0:00:06]} Ra7 {[%emt 0:00:05]} 22. Qe4 {[%emt 0:00:02]} Nf6 {[%emt 0:00:
01]} 23. Qe5 {[%emt 0:00:02]} Nxd3 {[%emt 0:00:09]} 24. Rxd3 {[%emt 0:00:01]}
Bb6 {[%emt 0:00:06]} 25. Nxd4 {[%emt 0:00:02]} Re8 {[%emt 0:00:05]} 26. Ne6 {
[%emt 0:00:05]} Qxd3 {[%emt 0:00:03]} 27. Qg5 {[%emt 0:00:02]} Qg6 {[%emt 0:00:
02]} 28. Qe5 {[%emt 0:00:02]} Rae7 {[%emt 0:00:01]} 29. Nf4 {[%emt 0:00:02]}
Qf7 {[%emt 0:00:02]} 0-1

[Event "FIDE Women World Blitz 2021"]
[Site "Warsaw"]
[Date "2021.12.29"]
[Round "2.8"]
[White "Sandu, Mihaela"]
[Black "Jarocka, Liwia"]
[Result "0-1"]
[ECO "B58"]
[WhiteElo "2244"]
[BlackElo "1851"]
[Annotator "NA"]
[PlyCount "79"]
[EventDate "2021.12.29"]
[EventType "swiss"]
[EventCountry "POL"]
[Tiebreak "Cut1 Buchholz"]
[SourceTitle "playchess.com"]
[Source "ChessBase"]
[SourceQuality "1"]
[TimeControl "180+2"]

1. e4 {[%emt 0:00:00]} c5 {[%emt 0:00:00]} 2. Nf3 {[%emt 0:00:02]} d6 {[%emt 0:
00:01]} 3. d4 {[%emt 0:00:01]} cxd4 {[%emt 0:00:01]} 4. Nxd4 {[%emt 0:00:01]}
Nf6 {[%emt 0:00:01]} 5. Nc3 {[%emt 0:00:00]} Nc6 {[%emt 0:00:01]} 6. Be2 {
[%emt 0:00:03]} e5 {[%emt 0:00:01]} 7. Nf3 {[%emt 0:00:05]} h6 {[%emt 0:00:02]}
8. O-O {[%emt 0:00:02]} Be7 {[%emt 0:00:01]} 9. Re1 {[%emt 0:00:04]} O-O {
[%emt 0:00:02]} 10. h3 {[%emt 0:00:03]} Be6 {[%emt 0:00:02]} 11. Bf1 {[%emt 0:
00:01]} Rc8 {[%emt 0:00:03]} 12. Nd5 {[%emt 0:00:10]} Bxd5 {[%emt 0:00:11]} 13.
exd5 {[%emt 0:00:02]} Nb4 {[%emt 0:00:01]} 14. c4 {[%emt 0:00:05]} a5 {[%emt 0:
00:01]} 15. b3 {[%emt 0:00:08]} Na6 {[%emt 0:00:04]} 16. a3 {[%emt 0:00:27]}
Nd7 {[%emt 0:00:09]} 17. Bd2 {[%emt 0:00:05]} f5 {[%emt 0:00:10]} 18. b4 {
[%emt 0:00:25]} Bf6 {[%emt 0:00:02]} 19. Bc3 {[%emt 0:00:13]} Qe8 {[%emt 0:00:
25]} 20. Rc1 {[%emt 0:00:16]} Qg6 {[%emt 0:00:08]} 21. c5 {[%emt 0:00:06]} e4 {
[%emt 0:00:09]} 22. Nd4 {[%emt 0:00:15]} dxc5 {[%emt 0:00:09]} 23. bxc5 {
[%emt 0:00:14]} Ndxc5 {[%emt 0:00:08]} 24. d6 {[%emt 0:00:13]} Rfd8 {[%emt 0:
00:08]} 25. Bc4+ {[%emt 0:00:08]} Kh8 {[%emt 0:00:04]} 26. Be6 {[%emt 0:00:16]}
Bxd4 {[%emt 0:00:18]} 27. Bxc8 {[%emt 0:00:02]} Bxc3 {[%emt 0:00:03]} 28. Rxc3
{[%emt 0:00:03]} Rxc8 {[%emt 0:00:02]} 29. Qd5 {[%emt 0:00:11]} Rd8 {[%emt 0:
00:04]} 30. Rxc5 {[%emt 0:00:01]} Nxc5 {[%emt 0:00:01]} 31. Qxc5 {[%emt 0:00:
01]} Qxd6 {[%emt 0:00:02]} 32. Qxf5 {[%emt 0:00:01]} Qxa3 {[%emt 0:00:05]} 33.
Rxe4 {[%emt 0:00:04]} Qc1+ {[%emt 0:00:06]} 34. Kh2 {[%emt 0:00:01]} Qc7+ {
[%emt 0:00:01]} 35. g3 {[%emt 0:00:02]} b6 {[%emt 0:00:04]} 36. Qg6 {[%emt 0:
00:17]} Qc5 {[%emt 0:00:18]} 37. Rf4 {[%emt 0:00:02]} Qd6 {[%emt 0:00:10]} 38.
Qg4 {[%emt 0:00:03]} b5 {[%emt 0:00:04]} 39. Rf5 {[%emt 0:00:04]} Rb8 {[%emt 0:
00:16]} 40. Rf7 {[%emt 0:00:00]} 0-1

[Event "FIDE Women World Blitz 2021"]
[Site "Warsaw"]
[Date "2021.12.29"]
[Round "2.9"]
[White "Zhukova, Natalia"]
[Black "Efroimski, Marsel"]
[Result "0-1"]
[ECO "A40"]
[WhiteElo "2331"]
[BlackElo "2419"]
[Annotator "NA"]
[PlyCount "79"]
[EventDate "2021.12.29"]
[EventType "swiss"]
[EventCountry "POL"]
[Tiebreak "Cut1 Buchholz"]
[SourceTitle "playchess.com"]
[Source "ChessBase"]
[SourceQuality "1"]
[TimeControl "180+2"]

1. d4 {[%emt 0:00:01]} e6 {[%emt 0:00:00]} 2. c4 {[%emt 0:00:01]} b6 3. Nc3 {
[%emt 0:00:02]} Bb7 {[%emt 0:00:01]} 4. a3 {[%emt 0:00:05]} f5 {[%emt 0:00:01]}
5. d5 {[%emt 0:00:04]} Na6 {[%emt 0:00:07]} 6. g3 {[%emt 0:00:02]} Nf6 {
[%emt 0:00:02]} 7. Bg2 {[%emt 0:00:01]} Nc5 {[%emt 0:00:01]} 8. Nf3 {[%emt 0:
00:05]} Nce4 {[%emt 0:00:03]} 9. Nxe4 {[%emt 0:00:12]} fxe4 {[%emt 0:00:03]}
10. Nh4 {[%emt 0:00:31]} exd5 {[%emt 0:00:01]} 11. cxd5 {[%emt 0:00:01]} Bxd5 {
[%emt 0:00:02]} 12. Nf5 {[%emt 0:00:23]} g6 {[%emt 0:00:14]} 13. Nh6 {[%emt 0:
01:05]} Bg7 {[%emt 0:01:26]} 14. O-O {[%emt 0:00:01]} Qe7 {[%emt 0:00:09]} 15.
Bg5 {[%emt 0:00:06]} Bc6 {[%emt 0:00:13]} 16. Rc1 {[%emt 0:00:18]} Qe6 {
[%emt 0:00:03]} 17. b4 {[%emt 0:00:07]} Qe5 {[%emt 0:00:15]} 18. h4 {[%emt 0:
00:04]} Qe6 {[%emt 0:00:08]} 19. b5 {[%emt 0:00:06]} Bxb5 {[%emt 0:00:04]} 20.
Rxc7 {[%emt 0:00:06]} Bc6 {[%emt 0:00:01]} 21. Qd2 {[%emt 0:00:15]} Nd5 {
[%emt 0:00:03]} 22. Rxc6 {[%emt 0:00:05]} dxc6 {[%emt 0:00:02]} 23. Kh2 {
[%emt 0:00:03]} Bc3 {[%emt 0:00:22]} 24. Qc2 {[%emt 0:00:00]} Bf6 {[%emt 0:00:
04]} 25. Bxe4 {[%emt 0:00:03]} Bxg5 {[%emt 0:00:02]} 26. hxg5 {[%emt 0:00:00]}
O-O-O {[%emt 0:00:04]} 27. Rc1 {[%emt 0:00:02]} Kb7 {[%emt 0:00:01]} 28. f4 {
[%emt 0:00:03]} Rhe8 {[%emt 0:00:02]} 29. Bf3 {[%emt 0:00:01]} Rd6 {[%emt 0:00:
02]} 30. Qb2 {[%emt 0:00:02]} Qe3 {[%emt 0:00:03]} 31. Rd1 {[%emt 0:00:02]}
Qf2+ {[%emt 0:00:02]} 32. Kh1 {[%emt 0:00:03]} Qxg3 {[%emt 0:00:03]} 33. Qg7+ {
[%emt 0:00:03]} Re7 {[%emt 0:00:01]} 34. Qxe7+ {[%emt 0:00:03]} Nxe7 {[%emt 0:
00:02]} 35. Rxd6 {[%emt 0:00:01]} Nd5 {[%emt 0:00:05]} 36. Rd7+ {[%emt 0:00:02]
} Ka6 {[%emt 0:00:01]} 37. Rxh7 {[%emt 0:00:03]} Qxf4 {[%emt 0:00:01]} 38. Nf7
{[%emt 0:00:02]} Ne3 {[%emt 0:00:03]} 39. Bxc6 {[%emt 0:00:01]} Qf1+ {[%emt 0:
00:02]} 40. Kh2 {[%emt 0:00:01]} 0-1

[Event "FIDE Women World Blitz 2021"]
[Site "Warsaw"]
[Date "2021.12.29"]
[Round "2.9"]
[White "Budkiewicz, Magdalena"]
[Black "Bivol, Alina"]
[Result "0-1"]
[ECO "C02"]
[WhiteElo "1624"]
[BlackElo "2377"]
[Annotator "NA"]
[PlyCount "56"]
[EventDate "2021.12.29"]
[EventType "swiss"]
[EventCountry "POL"]
[Tiebreak "Cut1 Buchholz"]
[SourceTitle "playchess.com"]
[Source "ChessBase"]
[SourceQuality "1"]
[TimeControl "180+2"]

1. e4 {[%emt 0:00:01]} e6 {[%emt 0:00:02]} 2. d4 {[%emt 0:00:01]} d5 {[%emt 0:
00:01]} 3. e5 {[%emt 0:00:01]} c5 {[%emt 0:00:00]} 4. Nf3 {[%emt 0:00:02]} Nc6
{[%emt 0:00:01]} 5. Bd3 {[%emt 0:00:01]} cxd4 {[%emt 0:00:13]} 6. O-O {[%emt 0:
00:03]} Nge7 {[%emt 0:00:08]} 7. Bf4 {[%emt 0:00:01]} Ng6 {[%emt 0:00:08]} 8.
Bg3 {[%emt 0:00:01]} Be7 {[%emt 0:00:01]} 9. Nbd2 {[%emt 0:00:04]} O-O {
[%emt 0:00:04]} 10. Nb3 {[%emt 0:00:01]} f5 {[%emt 0:00:19]} 11. exf6 {[%emt 0:
00:14]} Bxf6 {[%emt 0:00:07]} 12. Bxg6 {[%emt 0:00:15]} hxg6 {[%emt 0:00:01]}
13. Nfxd4 {[%emt 0:00:01]} e5 {[%emt 0:00:09]} 14. Nb5 {[%emt 0:00:20]} Bf5 {
[%emt 0:00:12]} 15. Re1 {[%emt 0:00:05]} d4 {[%emt 0:00:04]} 16. Na3 {[%emt 0:
00:18]} Qd5 {[%emt 0:00:12]} 17. Qe2 {[%emt 0:00:21]} Rac8 {[%emt 0:00:10]} 18.
Rad1 {[%emt 0:00:54]} Rfd8 {[%emt 0:00:00]} 19. Qd2 {[%emt 0:00:17]} b5 {
[%emt 0:00:12]} 20. c3 {[%emt 0:00:12]} a6 {[%emt 0:00:10]} 21. cxd4 {[%emt 0:
00:02]} exd4 {[%emt 0:00:04]} 22. Nc2 {[%emt 0:00:06]} Qf7 {[%emt 0:00:18]} 23.
Nb4 {[%emt 0:00:04]} Nxb4 {[%emt 0:00:10]} 24. Qxb4 {[%emt 0:00:01]} d3 {
[%emt 0:00:04]} 25. Rd2 {[%emt 0:00:05]} Re8 {[%emt 0:00:04]} 26. Red1 {
[%emt 0:00:05]} Rc2 {[%emt 0:00:12]} 27. Nd4 {[%emt 0:00:04]} Bxd4 {[%emt 0:00:
04]} 28. Qxd4 {[%emt 0:00:01]} Rxd2 {[%emt 0:00:02]} 0-1

[Event "FIDE Women World Blitz 2021"]
[Site "Warsaw"]
[Date "2021.12.29"]
[Round "2.10"]
[White "Sliwicka, Alicja"]
[Black "Parol, Pola"]
[Result "1-0"]
[ECO "B36"]
[WhiteElo "2303"]
[BlackElo "1823"]
[Annotator "NA"]
[PlyCount "69"]
[EventDate "2021.12.29"]
[EventType "swiss"]
[EventCountry "POL"]
[Tiebreak "Cut1 Buchholz"]
[SourceTitle "playchess.com"]
[Source "ChessBase"]
[SourceQuality "1"]
[TimeControl "180+2"]

1. e4 {[%emt 0:00:01]} c5 {[%emt 0:00:00]} 2. Ne2 {[%emt 0:00:02]} Nc6 {
[%emt 0:00:04]} 3. d4 {[%emt 0:00:02]} cxd4 {[%emt 0:00:02]} 4. Nxd4 {[%emt 0:
00:01]} g6 {[%emt 0:00:01]} 5. c4 {[%emt 0:00:02]} Nf6 {[%emt 0:00:02]} 6. Nc3
{[%emt 0:00:02]} Nxd4 {[%emt 0:00:11]} 7. Qxd4 {[%emt 0:00:02]} d6 {[%emt 0:00:
01]} 8. Be3 {[%emt 0:00:06]} Bg7 {[%emt 0:00:02]} 9. f3 {[%emt 0:00:03]} O-O {
[%emt 0:00:02]} 10. Qd2 {[%emt 0:00:02]} a5 {[%emt 0:00:08]} 11. b3 {[%emt 0:
00:09]} Nd7 {[%emt 0:00:12]} 12. Be2 {[%emt 0:00:16]} a4 {[%emt 0:00:28]} 13.
b4 {[%emt 0:00:05]} Ne5 {[%emt 0:00:16]} 14. Rc1 {[%emt 0:00:11]} Be6 {[%emt 0:
00:04]} 15. Nd5 {[%emt 0:00:15]} Bxd5 {[%emt 0:00:14]} 16. cxd5 {[%emt 0:00:12]
} f5 {[%emt 0:00:10]} 17. O-O {[%emt 0:00:09]} Qd7 {[%emt 0:00:14]} 18. f4 {
[%emt 0:00:26]} Ng4 {[%emt 0:00:16]} 19. Bxg4 {[%emt 0:00:05]} fxg4 {[%emt 0:
00:01]} 20. Bd4 {[%emt 0:00:09]} Bxd4+ {[%emt 0:00:03]} 21. Qxd4 {[%emt 0:00:
01]} Rac8 {[%emt 0:00:04]} 22. e5 {[%emt 0:00:23]} Rxc1 {[%emt 0:00:27]} 23.
Rxc1 {[%emt 0:00:01]} dxe5 {[%emt 0:00:10]} 24. fxe5 {[%emt 0:00:18]} Rd8 {
[%emt 0:00:05]} 25. Rd1 {[%emt 0:00:03]} Qf5 {[%emt 0:00:09]} 26. d6 {[%emt 0:
00:04]} exd6 {[%emt 0:00:03]} 27. exd6 {[%emt 0:00:01]} Qd7 {[%emt 0:00:03]}
28. Qd5+ {[%emt 0:00:02]} Kh8 {[%emt 0:00:03]} 29. b5 {[%emt 0:00:07]} Rc8 {
[%emt 0:00:08]} 30. Re1 {[%emt 0:00:10]} Rd8 {[%emt 0:00:02]} 31. Qd4+ {
[%emt 0:00:05]} Kg8 {[%emt 0:00:02]} 32. Re7 {[%emt 0:00:07]} Qxe7 {[%emt 0:00:
13]} 33. dxe7 {[%emt 0:00:02]} Rxd4 {[%emt 0:00:02]} 34. e8=Q+ {[%emt 0:00:04]}
Kg7 {[%emt 0:00:01]} 35. Qe5+ {[%emt 0:00:01]} 1-0

[Event "FIDE Women World Blitz 2021"]
[Site "Warsaw"]
[Date "2021.12.29"]
[Round "2.10"]
[White "Kazarian, Anna-Maja"]
[Black "Muzychuk, Mariya"]
[Result "0-1"]
[ECO "B40"]
[WhiteElo "2138"]
[BlackElo "2536"]
[Annotator "ChessBase"]
[PlyCount "90"]
[EventDate "2021.12.29"]
[EventType "swiss"]
[EventCountry "POL"]
[Tiebreak "Cut1 Buchholz"]
[SourceTitle "playchess.com"]
[Source "ChessBase"]
[SourceQuality "1"]
[TimeControl "180+2"]

1. e4 {[%emt 0:00:01]} c5 {[%emt 0:00:00]} 2. Nf3 {[%emt 0:00:01]} e6 {[%emt 0:
00:01]} 3. d4 {[%emt 0:00:01]} cxd4 {[%emt 0:00:01]} 4. Nxd4 {[%emt 0:00:01]}
Nf6 {[%emt 0:00:00]} 5. Bd3 {[%emt 0:00:05]} Nc6 {[%emt 0:00:02]} 6. Nb3 {
[%emt 0:00:01]} d5 {[%emt 0:00:08]} 7. exd5 {[%emt 0:00:05]} Nxd5 {[%emt 0:00:
01]} 8. O-O {[%emt 0:00:03]} Be7 {[%emt 0:00:02]} 9. a3 {[%emt 0:00:11]} O-O {
[%emt 0:00:04]} 10. Re1 {[%emt 0:00:07]} e5 {[%emt 0:00:21]} 11. Bd2 {[%emt 0:
00:21]} Be6 {[%emt 0:00:04]} 12. Qf3 {[%emt 0:00:32]} f5 {[%emt 0:00:07]} 13.
c4 {[%emt 0:00:19]} Nb6 {[%emt 0:00:13]} 14. Bf1 {[%emt 0:00:48]} Nxc4 {
[%emt 0:00:13]} 15. Bc3 {[%emt 0:00:18]} Qb6 {[%emt 0:00:17]} 16. N1d2 {
[%emt 0:00:11]} Nxd2 {[%emt 0:00:07]} 17. Nxd2 {[%emt 0:00:04]} Bf6 {[%emt 0:
00:03]} 18. Bc4 {[%emt 0:00:11]} Bxc4 {[%emt 0:00:10]} 19. Nxc4 {[%emt 0:00:01]
} Qc5 {[%emt 0:00:04]} 20. Ne3 {[%emt 0:00:09]} g6 {[%emt 0:00:07]} 21. Rac1 {
[%emt 0:00:04]} Qb5 {[%emt 0:00:48]} 22. Qd5+ {[%emt 0:00:03]} Qxd5 {[%emt 0:
00:03]} 23. Nxd5 {[%emt 0:00:00]} Bg7 {[%emt 0:00:11]} 24. Nc7 {[%emt 0:00:03]}
Rac8 {[%emt 0:00:07]} 25. Ne6 {[%emt 0:00:02]} Rfe8 {[%emt 0:00:02]} 26. Nxg7
Kxg7 {[%emt 0:00:01]} 27. f4 {[%emt 0:00:07]} Kf7 {[%emt 0:00:07]} 28. Bxe5 {
[%emt 0:00:04]} Nxe5 {[%emt 0:00:06]} 29. Rxc8 {[%emt 0:00:03]} Rxc8 {[%emt 0:
00:09]} 30. fxe5 {[%emt 0:00:02]} Ke6 {[%emt 0:00:00]} 31. Kf2 {[%emt 0:00:02]}
Rc2+ {[%emt 0:00:01]} 32. Re2 {[%emt 0:00:01]} Rxe2+ {[%emt 0:00:01]} 33. Kxe2
{[%emt 0:00:01]} Kxe5 {[%emt 0:00:01]} 34. Ke3 {[%emt 0:00:01]} g5 {[%emt 0:00:
01]} 35. g3 {[%emt 0:00:01]} h5 {[%emt 0:00:02]} 36. h4 {[%emt 0:00:01]} gxh4 {
[%emt 0:00:04]} 37. gxh4 {[%emt 0:00:01]} f4+ {[%emt 0:00:01]} 38. Kf3 {
[%emt 0:00:01]} b5 {[%emt 0:00:05]} 39. Kf2 {[%emt 0:00:02]} Ke4 {[%emt 0:00:
01]} 40. Ke2 {[%emt 0:00:00]} a5 {[%emt 0:00:03]} 41. Kf2 {[%emt 0:00:01]} a4 {
[%emt 0:00:01]} 42. Ke2 {[%emt 0:00:01]} f3+ {[%emt 0:00:01]} 43. Kf2 {[%emt 0:
00:00]} Kf4 {[%emt 0:00:01]} 44. Kf1 {[%emt 0:00:01]} Kg3 {[%emt 0:00:00]} 45.
Kg1 {[%emt 0:00:01]} Kxh4 {[%emt 0:00:01]} 0-1